bitfinex/quotes_SOLUSD_20250806
["timestamp","ask_amount","ask_price","bid_price","bid_amount"]
[1754490277549,6.76891755,164.76,164.75,13.1692185]
[1754490277861,6.76891755,164.76,164.7,36.35695981]
[1754490277862,6.76891755,164.76,164.74,12.4892185]
[1754490280852,26.0,164.7,164.69,0.06]
[1754490281064,38.4892185,164.7,164.69,0.06]
[1754490281365,39.1892185,164.7,164.69,0.06]
[1754490281552,38.4892185,164.7,164.69,0.06]
[1754490282271,39.1892185,164.7,164.69,0.06]
[1754490285183,83.7292185,164.7,164.69,0.06]
[1754490285567,89.80086391,164.7,164.69,0.06]
[1754490286292,104.90707948,164.7,164.69,0.06]
[1754490286458,108.95560577,164.7,164.69,0.06]
[1754490287556,26.0,164.66,164.58,0.78436321]
[1754490287755,12.4892185,164.61,164.58,0.78436321]
[1754490288095,44.52,164.6,164.58,0.78436321]
[1754490288396,44.52,164.6,164.58,1.46436321]
[1754490288591,44.52,164.6,164.58,0.78436321]
[1754490288955,44.52,164.6,164.59,0.68]
[1754490289185,44.5,164.6,164.59,0.68]
[1754490289910,44.5,164.62,164.59,0.68]
[1754490290406,44.5,164.62,164.6,13.1692185]
[1754490290607,12.4892185,164.69,164.61,13.1692185]
[1754490290787,44.48,164.75,164.66,12.4892185]
[1754490290980,43.78,164.75,164.68,12.4892185]
[1754490291304,12.4892185,164.73,164.68,12.4892185]
[1754490291600,12.4892185,164.72,164.68,0.68]
[1754490291809,44.54,164.71,164.69,12.4892185]
[1754490291995,43.78,164.75,164.7,13.1692185]
[1754490292181,44.54,164.74,164.72,12.4892185]
[1754490292373,44.54,164.74,164.73,13.1692185]
[1754490292576,44.54,164.74,164.7,0.68]
[1754490293213,52.80750984,164.74,164.7,0.68]
[1754490293372,8.26750984,164.72,164.67,8.94750984]
[1754490293573,44.54,164.71,164.67,8.26750984]
[1754490293885,8.26750984,164.7,164.67,0.68]
[1754490294475,44.54,164.71,164.68,0.68]
[1754490294682,44.54,164.71,164.69,0.68]
[1754490294892,44.54,164.71,164.67,12.47897209]
[1754490295200,44.54,164.71,164.67,13.15897209]
[1754490295404,12.47897209,164.69,164.63,0.68]
[1754490295708,56.97897209,164.68,164.63,13.15897209]
[1754490295885,44.5,164.67,164.64,0.68]
[1754490296209,56.97897209,164.67,164.64,0.68]
[1754490296412,56.97897209,164.67,164.62,12.47897209]
[1754490296716,56.97897209,164.67,164.63,0.68]
[1754490296891,44.5,164.67,164.62,0.68]
[1754490297082,12.47897209,164.65,164.6,12.47897209]
[1754490297404,44.48,164.64,164.6,13.15897209]
[1754490297700,56.95897209,164.64,164.6,0.68]
[1754490298004,12.47897209,164.63,164.58,7.5403192]
[1754490298304,12.47897209,164.63,164.59,0.68]
[1754490298904,12.47897209,164.63,164.58,0.78436321]
[1754490299201,12.47897209,164.62,164.58,1.46436321]
[1754490299502,12.47897209,164.6,164.58,0.78436321]
[1754490299709,45.2,164.61,164.58,0.78436321]
[1754490300000,12.47897209,164.6,164.58,0.78436321]
[1754490300306,26.0,164.65,164.58,0.78436321]
[1754490300307,26.0,164.65,164.59,13.15897209]
[1754490300491,0.7,164.68,164.61,12.47897209]
[1754490300492,44.52,164.64,164.61,12.47897209]
[1754490300808,44.52,164.64,164.61,0.68]
[1754490301103,12.47897209,164.62,164.58,0.78436321]
[1754490301309,0.7,164.63,164.58,13.2633353]
[1754490301310,44.52,164.61,164.58,13.2633353]
[1754490301601,44.52,164.61,164.59,0.68]
[1754490301903,44.52,164.61,164.58,13.2633353]
[1754490301904,44.52,164.61,164.58,13.9433353]
[1754490302073,44.52,164.61,164.58,1.46436321]
[1754490302828,44.52,164.61,164.58,0.78436321]
[1754490303120,56.99897209,164.61,164.58,0.78436321]
[1754490303897,44.52,164.61,164.58,13.2633353]
[1754490304088,56.99897209,164.61,164.58,0.78436321]
[1754490304294,44.52,164.61,164.58,0.78436321]
[1754490304606,56.99897209,164.61,164.58,0.78436321]
[1754490305226,44.52,164.61,164.58,0.78436321]
[1754490306014,56.99897209,164.61,164.58,0.78436321]
[1754490306392,44.52,164.61,164.58,0.78436321]
[1754490306593,44.44,164.61,164.6,12.47897209]
[1754490307008,44.44,164.61,164.6,13.17897209]
[1754490307410,44.44,164.61,164.58,0.78436321]
[1754490307714,56.91897209,164.61,164.58,0.78436321]
[1754490307913,57.59897209,164.61,164.58,0.78436321]
[1754490308232,12.47897209,164.59,164.58,0.78436321]
[1754490308527,18.55467535,164.59,164.58,0.68436321]
[1754490308703,26.0,164.55,164.52,0.2]
[1754490308906,26.0,164.5,164.39,0.7]
[1754490309106,44.44,164.49,164.39,0.7]
[1754490309312,44.44,164.49,164.38,6.08340038]
[1754490309313,12.47897209,164.43,164.38,6.08340038]
[1754490309499,56.91897209,164.42,164.38,0.7]
[1754490309699,26.0,164.47,164.41,12.47897209]
[1754490309905,38.47897209,164.47,164.42,12.47897209]
[1754490310225,12.47897209,164.44,164.38,0.7]
[1754490310429,44.48,164.43,164.39,12.47897209]
[1754490310591,44.48,164.43,164.36,6.0842054]
[1754490310796,44.48,164.43,164.39,13.17897209]
[1754490310998,44.48,164.43,164.4,0.7]
[1754490311517,56.95897209,164.43,164.38,0.7]
[1754490311737,26.32,164.47,164.39,13.23897209]
[1754490311935,57.03897209,164.46,164.41,12.47897209]
[1754490312254,26.32,164.47,164.39,0.76]
[1754490312255,44.56,164.45,164.39,0.76]
[1754490312400,12.47897209,164.44,164.39,12.53897209]
[1754490312594,12.47897209,164.44,164.4,0.7]
[1754490312795,12.47897209,164.44,164.39,12.53897209]
[1754490313119,12.47897209,164.43,164.39,0.76]
[1754490313306,44.56,164.42,164.39,13.23897209]
[1754490313723,44.56,164.42,164.39,0.76]
[1754490314030,44.56,164.42,164.39,13.23897209]
[1754490314243,44.56,164.42,164.4,0.7]
[1754490314436,44.56,164.42,164.39,12.53897209]
[1754490314653,44.56,164.42,164.39,18.62198986]
[1754490314820,44.56,164.42,164.39,19.32198986]
[1754490315010,44.56,164.42,164.4,13.17897209]
[1754490315346,44.56,164.42,164.39,0.06]
[1754490315347,57.03897209,164.42,164.39,0.06]
[1754490315510,12.47897209,164.41,164.39,0.06]
[1754490315844,44.56,164.42,164.39,0.06]
[1754490316140,15.10621557,164.49,164.39,0.06]
[1754490316141,12.47897209,164.45,164.41,12.47897209]
[1754490316439,44.6,164.44,164.4,19.26162706]
[1754490316631,44.6,164.44,164.41,0.7]
[1754490316803,44.6,164.44,164.41,13.17897209]
[1754490317007,44.58,164.45,164.43,12.47897209]
[1754490317262,44.58,164.46,164.44,0.7]
[1754490317454,44.58,164.46,164.44,12.47897209]
[1754490317611,57.05897209,164.46,164.41,74.57897209]
[1754490317814,57.05897209,164.46,164.41,62.1]
[1754490318118,12.47897209,164.45,164.41,62.1]
[1754490318527,44.9,164.46,164.41,62.1]
[1754490318866,44.58,164.46,164.42,13.17897209]
[1754490319019,44.58,164.46,164.43,0.7]
[1754490319343,0.32,164.45,164.41,62.1]
[1754490319548,12.47897209,164.45,164.41,62.1]
[1754490320021,12.47897209,164.45,164.41,75.27897209]
[1754490320221,44.58,164.46,164.43,12.47897209]
[1754490320421,44.58,164.46,164.44,19.26010234]
[1754490320627,44.58,164.46,164.45,13.17897209]
[1754490320855,13.178972,164.56,164.45,13.17897209]
[1754490321072,13.178972,164.56,164.44,6.08113025]
[1754490321073,44.58,164.55,164.49,12.47897209]
[1754490321234,44.58,164.55,164.46,0.7]
[1754490321235,12.47897209,164.53,164.48,12.47897209]
[1754490321533,12.47897209,164.5,164.45,12.47897209]
[1754490321865,12.47897209,164.46,164.42,13.17897209]
[1754490322073,57.05897209,164.45,164.4,12.47897209]
[1754490322368,44.58,164.44,164.41,13.17897209]
[1754490322547,44.58,164.44,164.4,12.47897209]
[1754490322740,12.47897209,164.43,164.39,0.06]
[1754490323062,44.58,164.44,164.39,19.32189271]
[1754490323247,57.05897209,164.44,164.39,6.84292062]
[1754490323561,57.05897209,164.44,164.39,19.32189271]
[1754490324068,44.58,164.44,164.41,12.47897209]
[1754490324442,44.58,164.44,164.43,6.08161527]
[1754490324641,12.47897209,164.5,164.43,19.26058736]
[1754490324866,12.47897209,164.5,164.43,6.78161527]
[1754490325037,12.47897209,164.46,164.42,6.08188375]
[1754490325237,44.6,164.45,164.41,6.08225452]
[1754490325545,44.6,164.45,164.41,19.26122661]
[1754490326132,44.6,164.45,164.43,12.47897209]
[1754490326335,44.6,164.45,164.44,6.08124543]
[1754490326556,44.6,164.45,164.44,19.26021752]
[1754490326752,21.37649745,164.61,164.44,19.26021752]
[1754490326946,12.47897209,164.55,164.5,12.47897209]
[1754490327160,12.47897209,164.53,164.48,12.47897209]
[1754490327379,12.47897209,164.51,164.44,6.78124543]
[1754490327665,12.47897209,164.48,164.43,18.56049081]
[1754490327847,12.47897209,164.47,164.41,0.7]
[1754490328044,57.13897209,164.46,164.41,13.17897209]
[1754490328241,44.66,164.46,164.42,13.17897209]
[1754490328778,0.32,164.54,164.45,12.47897209]
[1754490328952,57.11897209,164.53,164.48,12.47897209]
[1754490329259,15.03519601,164.52,164.47,12.47897209]
[1754490329472,57.11897209,164.53,164.48,13.17897209]
[1754490329837,12.47897209,164.52,164.42,21.2866078]
[1754490330133,12.47897209,164.52,164.47,12.47897209]
[1754490330533,12.47897209,164.52,164.47,18.5589392]
[1754490330874,12.47897209,164.48,164.42,0.7]
[1754490331166,57.13897209,164.47,164.41,12.47897209]
[1754490331335,57.13897209,164.47,164.42,12.47897209]
[1754490331540,57.13897209,164.47,164.42,13.17897209]
[1754490331948,44.66,164.47,164.44,12.47897209]
[1754490332250,44.66,164.47,164.45,13.17897209]
[1754490332569,44.66,164.47,164.46,13.17897209]
[1754490332746,44.62,164.5,164.47,6.08013619]
[1754490333066,44.62,164.5,164.49,12.47897209]
[1754490334172,44.62,164.5,164.48,13.16897209]
[1754490334375,44.62,164.5,164.49,12.47897209]
[1754490334741,44.62,164.5,164.49,18.55836901]
[1754490335241,44.62,164.5,164.49,12.47897209]
[1754490336179,44.62,164.5,164.48,12.47897209]
[1754490336477,44.62,164.5,164.45,6.08087564]
[1754490336646,44.62,164.5,164.46,12.47897209]
[1754490337168,44.62,164.5,164.47,12.47897209]
[1754490337473,44.62,164.5,164.48,12.47897209]
[1754490337872,44.62,164.5,164.47,13.16897209]
[1754490338050,44.62,164.5,164.47,12.47897209]
[1754490338375,44.62,164.5,164.44,0.75]
[1754490338671,12.47897209,164.48,164.44,0.06]
[1754490338861,44.64,164.47,164.44,0.06]
[1754490340175,57.43897209,164.47,164.44,0.06]
[1754490340386,44.64,164.47,164.44,0.06]
[1754490340548,57.11897209,164.47,164.44,0.06]
[1754490341057,57.43897209,164.47,164.44,0.06]
[1754490341441,12.47897209,164.45,164.44,0.06]
[1754490341873,0.32,164.46,164.44,0.06]
[1754490342073,12.47897209,164.45,164.44,0.06]
[1754490342446,2.2510886,164.45,164.44,0.06]
[1754490342646,44.64,164.47,164.44,0.75]
[1754490342868,2.25114825,164.46,164.44,0.06]
[1754490343177,10.54651634,164.46,164.44,0.06]
[1754490343383,2.25114825,164.45,164.44,0.06]
[1754490343972,10.54651634,164.46,164.44,0.06]
[1754490344187,2.25114825,164.45,164.44,0.06]
[1754490344352,2.57114825,164.45,164.44,0.06]
[1754490344559,10.86651634,164.45,164.44,0.06]
[1754490345064,10.54651634,164.45,164.44,0.06]
[1754490345270,10.86651634,164.45,164.44,0.06]
[1754490345470,10.54651634,164.45,164.44,0.06]
[1754490345675,10.86651634,164.45,164.44,0.06]
[1754490345858,10.54651634,164.45,164.44,0.06]
[1754490346177,2.25114825,164.45,164.44,0.06]
[1754490346382,46.89114825,164.45,164.44,0.06]
[1754490346585,70.61273191,164.45,164.35,0.78436321]
[1754490346788,8.29536809,164.36,164.35,0.78436321]
[1754490346954,55.28651634,164.36,164.35,0.78436321]
[1754490347153,85.33999176,164.36,164.35,0.78436321]
[1754490347651,85.59999176,164.36,164.35,0.78436321]
[1754490347854,40.85999176,164.36,164.35,0.78436321]
[1754490348078,85.61999176,164.36,164.35,0.78436321]
[1754490348678,95.94925016,164.36,164.35,0.78436321]
[1754490349185,45.10504476,164.36,164.35,0.78436321]
[1754490349684,51.18925016,164.36,164.35,0.78436321]
[1754490349984,44.84504476,164.36,164.35,0.78436321]
[1754490350165,32.30462367,164.36,164.35,0.78436321]
[1754490350354,89.62504476,164.36,164.35,0.78436321]
[1754490350555,95.96925016,164.36,164.35,0.78436321]
[1754490350756,97.61588682,164.36,164.35,0.78436321]
[1754490351887,40.29546573,164.36,164.35,0.78436321]
[1754490352077,85.07546573,164.36,164.35,0.78436321]
[1754490352301,97.61588682,164.36,164.35,0.78436321]
[1754490353796,6.56462367,164.36,164.35,0.78436321]
[1754490354097,50.92925016,164.36,164.35,0.78436321]
[1754490354403,77.06462367,164.36,164.35,0.78436321]
[1754490354583,89.60504476,164.36,164.35,0.78436321]
[1754490354810,97.59588682,164.36,164.35,0.78436321]
[1754490355087,97.59588682,164.36,164.16,40.45780348]
[1754490355088,12.54042109,164.27,164.24,0.69]
[1754490355288,12.54042109,164.25,164.24,0.69]
[1754490355585,57.34042109,164.26,164.25,0.69]
[1754490355896,44.8,164.26,164.25,0.69]
[1754490356915,44.82,164.26,164.25,0.69]
[1754490357270,44.82,164.26,164.22,12.54042109]
[1754490357271,44.82,164.26,164.22,0.69]
[1754490357472,12.54042109,164.25,164.2,12.54042109]
[1754490357778,44.82,164.24,164.23,0.69]
[1754490358103,57.36042109,164.24,164.21,0.69]
[1754490358285,57.36042109,164.24,164.22,0.69]
[1754490358482,12.54042109,164.23,164.19,0.69]
[1754490358689,57.36042109,164.22,164.2,0.69]
[1754490359023,44.82,164.21,164.2,0.69]
[1754490359512,44.82,164.21,164.2,19.32055507]
[1754490359682,0.26,164.33,164.2,19.32055507]
[1754490359879,12.54042109,164.26,164.21,13.23042109]
[1754490360116,44.86,164.25,164.22,0.69]
[1754490360328,26.0,164.3,164.24,12.54042109]
[1754490360627,5.0255077,164.38,164.29,12.54042109]
[1754490360783,19.18720935,164.41,164.34,12.54042109]
[1754490360784,2.24526291,164.37,164.34,12.54042109]
[1754490361131,44.9,164.37,164.36,12.54042109]
[1754490361333,44.18,164.37,164.34,0.69]
[1754490361626,44.18,164.37,164.29,0.28432314]
[1754490361627,44.18,164.37,164.33,12.54042109]
[1754490361783,44.18,164.37,164.3,0.69]
[1754490361986,12.54042109,164.36,164.31,12.54042109]
[1754490362206,45.0,164.35,164.32,0.69]
[1754490362405,45.0,164.35,164.33,0.69]
[1754490362618,12.54042109,164.34,164.3,0.69]
[1754490362912,12.54042109,164.33,164.3,0.69]
[1754490363120,45.02,164.32,164.29,12.54042109]
[1754490363303,45.02,164.32,164.31,0.69]
[1754490363919,26.66,164.41,164.31,13.23042109]
[1754490364084,12.54042109,164.39,164.34,12.54042109]
[1754490364286,45.02,164.38,164.35,0.69]
[1754490364519,12.54042109,164.4,164.36,0.69]
[1754490364844,47.26650154,164.39,164.36,0.69]
[1754490365118,12.54042109,164.4,164.36,0.69]
[1754490365314,12.54042109,164.43,164.38,12.54042109]
[1754490365501,47.26773444,164.42,164.39,0.69]
[1754490365707,0.03,164.44,164.33,0.28432314]
[1754490365708,0.03,164.44,164.41,12.54042109]
[1754490365885,0.03,164.44,164.43,12.54042109]
[1754490366296,12.57042109,164.44,164.38,12.54042109]
[1754490366533,57.58042109,164.43,164.38,13.23042109]
[1754490366711,45.04,164.43,164.39,13.23042109]
[1754490366902,45.04,164.43,164.4,0.69]
[1754490367352,45.04,164.43,164.41,13.23042109]
[1754490367502,45.04,164.43,164.41,0.69]
[1754490367702,0.03,164.44,164.42,13.23042109]
[1754490367900,0.03,164.44,164.42,0.69]
[1754490368111,0.03,164.44,164.43,13.23042109]
[1754490368641,0.03,164.44,164.4,0.69]
[1754490368800,0.03,164.44,164.4,13.23042109]
[1754490369000,12.57042109,164.44,164.4,0.69]
[1754490369233,0.03,164.44,164.4,0.69]
[1754490369411,12.57042109,164.44,164.4,0.69]
[1754490369732,0.03,164.44,164.41,0.69]
[1754490369933,12.57042109,164.44,164.41,0.69]
[1754490370115,12.57042109,164.44,164.39,12.54042109]
[1754490370308,0.03,164.44,164.4,13.23042109]
[1754490370509,12.57042109,164.44,164.4,0.69]
[1754490370937,0.03,164.44,164.41,0.69]
[1754490371140,0.03,164.44,164.41,12.54042109]
[1754490371341,0.03,164.44,164.39,6.08304146]
[1754490371342,0.03,164.44,164.42,13.23042109]
[1754490371641,0.03,164.44,164.42,0.69]
[1754490372366,0.03,164.44,164.4,12.54042109]
[1754490372522,0.03,164.44,164.39,6.77305745]
[1754490372840,0.03,164.44,164.43,12.54042109]
[1754490373223,0.03,164.44,164.43,0.69]
[1754490373446,0.03,164.44,164.42,12.54042109]
[1754490373650,0.03,164.44,164.43,0.69]
[1754490374164,0.03,164.44,164.43,13.23042109]
[1754490374944,0.03,164.44,164.43,19.31203636]
[1754490375741,0.03,164.44,164.43,13.23042109]
[1754490376058,0.03,164.44,164.4,0.69]
[1754490376256,0.03,164.44,164.43,13.23042109]
[1754490376750,0.03,164.44,164.41,12.54042109]
[1754490376935,0.03,164.44,164.41,13.23042109]
[1754490377380,0.03,164.44,164.42,13.23042109]
[1754490378257,0.03,164.44,164.42,12.54042109]
[1754490378558,0.03,164.44,164.41,12.54042109]
[1754490378770,0.03,164.44,164.4,13.23042109]
[1754490378930,0.03,164.44,164.4,0.69]
[1754490379137,0.03,164.44,164.4,13.23042109]
[1754490379650,0.03,164.44,164.41,13.23042109]
[1754490379859,0.03,164.44,164.41,0.69]
[1754490380157,0.03,164.44,164.42,12.54042109]
[1754490380351,0.03,164.44,164.42,13.23042109]
[1754490380661,12.57042109,164.44,164.39,13.23042109]
[1754490380858,12.54042109,164.43,164.39,13.23042109]
[1754490381030,0.03,164.44,164.4,13.23042109]
[1754490381232,12.57042109,164.44,164.4,12.54042109]
[1754490381558,0.03,164.44,164.41,0.69]
[1754490381769,0.03,164.44,164.43,12.54042109]
[1754490382259,0.03,164.44,164.43,13.23042109]
[1754490382448,12.57042109,164.44,164.42,62.1]
[1754490382763,8.29938677,164.43,164.39,0.69]
[1754490382963,0.03,164.44,164.4,8.98938677]
[1754490383142,0.03,164.44,164.41,0.69]
[1754490383532,0.03,164.44,164.4,8.98938677]
[1754490383748,0.03,164.44,164.4,8.29938677]
[1754490383947,0.03,164.44,164.41,0.69]
[1754490384164,0.03,164.44,164.42,8.29938677]
[1754490384475,0.03,164.44,164.43,8.29938677]
[1754490385138,0.03,164.44,164.42,8.98938677]
[1754490385334,0.03,164.44,164.43,8.98938677]
[1754490387038,0.03,164.44,164.43,0.69]
[1754490387377,0.03,164.44,164.43,15.07100204]
[1754490387748,0.03,164.44,164.43,8.98938677]
[1754490388142,0.03,164.44,164.43,8.29938677]
[1754490388343,0.03,164.44,164.42,8.29938677]
[1754490388558,0.03,164.44,164.43,8.98938677]
[1754490389279,0.03,164.46,164.44,15.24837714]
[1754490389446,0.03,164.46,164.45,8.29938677]
[1754490389643,0.03,164.46,164.45,8.98938677]
[1754490389945,8.98938677,164.46,164.4,8.29938677]
[1754490390148,8.29938677,164.45,164.4,8.29938677]
[1754490390644,8.29938677,164.45,164.4,0.69]
[1754490390854,8.29938677,164.43,164.38,8.29938677]
[1754490391040,8.95938677,164.42,164.37,8.98938677]
[1754490391235,44.9,164.45,164.37,8.98938677]
[1754490391236,8.29938677,164.43,164.38,8.98938677]
[1754490391541,45.56,164.45,164.39,8.98938677]
[1754490392076,8.29938677,164.44,164.39,8.98938677]
[1754490392254,8.29938677,164.44,164.4,0.69]
[1754490392667,44.9,164.45,164.4,0.69]
[1754490392976,8.29938677,164.41,164.34,0.66]
[1754490393147,8.29938677,164.39,164.34,8.95938677]
[1754490393345,8.99938677,164.41,164.35,8.95938677]
[1754490393759,0.7,164.41,164.35,8.95938677]
[1754490393957,8.29938677,164.41,164.36,8.29938677]
[1754490394143,8.99938677,164.4,164.35,8.29938677]
[1754490394542,8.99938677,164.39,164.34,8.95938677]
[1754490394763,0.7,164.39,164.35,8.29938677]
[1754490394966,44.88,164.4,164.34,8.95938677]
[1754490395238,53.17938677,164.4,164.35,8.95938677]
[1754490395445,44.88,164.4,164.36,8.95938677]
[1754490395746,44.88,164.4,164.38,8.29938677]
[1754490395978,34.29938677,164.42,164.38,0.66]
[1754490396194,34.29938677,164.42,164.37,8.29938677]
[1754490396486,34.29938677,164.42,164.36,0.66]
[1754490396487,8.29938677,164.41,164.36,8.95938677]
[1754490396704,44.88,164.44,164.38,8.29938677]
[1754490396867,0.03,164.46,164.43,8.29938677]
[1754490397069,0.03,164.46,164.44,8.95938677]
[1754490397270,0.03,164.46,164.44,6.74118817]
[1754490397471,0.03,164.46,164.45,0.66]
[1754490397703,0.03,164.46,164.45,8.95938677]
[1754490399563,0.03,164.46,164.45,8.29938677]
[1754490399774,0.03,164.46,164.43,8.95938677]
[1754490399972,0.73,164.46,164.4,8.95938677]
[1754490400167,0.03,164.46,164.4,6.74268941]
[1754490400373,0.03,164.46,164.43,8.29938677]
[1754490400562,0.03,164.46,164.42,8.29938677]
[1754490400774,0.03,164.46,164.43,8.29938677]
[1754490400974,0.03,164.46,164.4,6.08268941]
[1754490400975,9.02938677,164.46,164.4,6.08268941]
[1754490401304,8.29938677,164.45,164.4,14.38207618]
[1754490401477,8.29938677,164.44,164.39,8.95938677]
[1754490401869,8.99938677,164.45,164.4,8.29938677]
[1754490402359,8.29938677,164.45,164.4,8.95938677]
[1754490402564,8.32938677,164.46,164.41,8.29938677]
[1754490402884,8.32938677,164.46,164.39,6.08301893]
[1754490402885,8.29938677,164.45,164.39,6.74301893]
[1754490403101,0.73,164.46,164.41,8.29938677]
[1754490403398,8.32938677,164.46,164.42,0.66]
[1754490403889,8.29938677,164.45,164.39,6.7430006]
[1754490404089,0.03,164.46,164.41,8.29938677]
[1754490404270,12.41032378,164.46,164.41,8.29938677]
[1754490404472,8.29938677,164.45,164.41,8.29938677]
[1754490404665,8.29938677,164.43,164.38,14.38278055]
[1754490404868,8.29938677,164.41,164.38,62.1]
[1754490405095,32.11065355,164.46,164.38,62.1]
[1754490405096,4.08093701,164.43,164.38,62.1]
[1754490405396,8.29938677,164.4,164.35,8.95938677]
[1754490405591,8.29938677,164.37,164.33,0.06]
[1754490406086,4.08093701,164.4,164.36,8.29938677]
[1754490406276,53.15938677,164.41,164.36,8.29938677]
[1754490406277,53.15938677,164.41,164.36,8.95938677]
[1754490406461,8.29938677,164.4,164.36,0.66]
[1754490406661,12.38349854,164.4,164.36,0.66]
[1754490406860,12.38349854,164.4,164.34,0.66]
[1754490406861,8.29938677,164.4,164.34,0.66]
[1754490407061,12.38357639,164.4,164.35,8.29938677]
[1754490407295,13.08357639,164.4,164.35,8.29938677]
[1754490407497,4.78418962,164.4,164.35,8.29938677]
[1754490407679,13.08357639,164.4,164.35,8.29938677]
[1754490407866,8.99938677,164.4,164.35,8.29938677]
[1754490408067,8.99938677,164.4,164.34,6.74482704]
[1754490408068,8.29938677,164.38,164.33,14.44459042]
[1754490408395,12.38527405,164.4,164.35,8.29938677]
[1754490408592,12.38527405,164.4,164.35,8.95938677]
[1754490408794,12.38527405,164.4,164.36,0.66]
[1754490409514,4.08588728,164.4,164.39,8.29938677]
[1754490409662,4.08588728,164.42,164.39,8.95938677]
[1754490409869,4.08588728,164.43,164.4,8.95938677]
[1754490410195,4.08588728,164.42,164.41,8.29938677]
[1754490410399,4.08588728,164.43,164.41,8.95938677]
[1754490410600,4.08588728,164.45,164.42,8.95938677]
[1754490410770,4.08588728,164.44,164.41,8.29938677]
[1754490411099,4.08588728,164.43,164.41,8.29938677]
[1754490411263,4.08588728,164.44,164.41,8.29938677]
[1754490411464,4.08588728,164.44,164.42,8.29938677]
[1754490411794,4.08588728,164.45,164.43,8.95938677]
[1754490411965,0.03,164.46,164.41,6.08221575]
[1754490411966,4.08588728,164.44,164.42,8.29938677]
[1754490412163,4.08588728,164.45,164.42,8.29938677]
[1754490412405,4.08588728,164.44,164.4,8.29938677]
[1754490412699,4.08588728,164.44,164.38,6.74344329]
[1754490413000,4.08588728,164.43,164.38,6.08344329]
[1754490413171,13.08527405,164.43,164.38,14.38283006]
[1754490413520,8.29938677,164.41,164.36,8.95938677]
[1754490413805,12.79091906,164.41,164.36,8.29938677]
[1754490414092,8.29938677,164.4,164.35,8.29938677]
[1754490414390,8.29938677,164.37,164.33,0.06]
[1754490417022,44.86,164.38,164.33,8.35938677]
[1754490417320,44.86,164.38,164.34,0.66]
[1754490417596,53.15938677,164.38,164.34,14.38429637]
[1754490417896,44.86,164.38,164.36,8.29938677]
[1754490418088,44.82,164.41,164.37,8.29938677]
[1754490418282,53.11938677,164.41,164.36,0.66]
[1754490418599,8.99938677,164.4,164.34,6.0849096]
[1754490418805,8.29938677,164.39,164.35,8.29938677]
[1754490419010,8.99938677,164.39,164.33,6.14526788]
[1754490419303,8.29938677,164.38,164.33,0.06]
[1754490419473,8.29938677,164.38,164.33,8.35938677]
[1754490419670,4.08939807,164.4,164.33,8.35938677]
[1754490419671,8.99938677,164.37,164.33,0.06]
[1754490420095,8.29938677,164.36,164.33,0.06]
[1754490420293,0.7,164.37,164.33,0.06]
[1754490420578,4.08990967,164.4,164.35,8.29938677]
[1754490420773,8.29938677,164.39,164.35,8.95938677]
[1754490421186,12.38929644,164.4,164.35,8.95938677]
[1754490421396,12.38929644,164.4,164.35,0.66]
[1754490421601,12.38929644,164.4,164.35,8.95938677]
[1754490421800,4.08990967,164.4,164.36,8.29938677]
[1754490422003,4.08990967,164.4,164.37,8.29938677]
[1754490422206,4.08990967,164.4,164.39,8.29938677]
[1754490422515,8.29938677,164.45,164.39,8.29938677]
[1754490422516,4.08845103,164.43,164.39,8.95938677]
[1754490422823,4.08845103,164.44,164.41,8.29938677]
[1754490423127,4.08845103,164.44,164.42,8.29938677]
[1754490423482,4.08845103,164.44,164.43,8.98938677]
[1754490423713,0.03,164.46,164.44,6.08124543]
[1754490423883,0.03,164.46,164.45,8.29938677]
[1754490424696,0.03,164.46,164.45,12.51161142]
[1754490424883,0.03,164.46,164.45,13.20161142]
[1754490425706,0.03,164.52,164.47,15.10621557]
[1754490425920,0.03,164.52,164.51,12.51161142]